bitfinex-derivatives/quotes_SOLF0:USTF0_20260213
["timestamp","ask_amount","ask_price","bid_price","bid_amount"]
[1770992949560,19.56821995,80.607,80.564,11.1795]
[1770992950263,19.56821995,80.607,80.557,11.1804]
[1770992950562,19.56821995,80.607,80.53,9.50073176]
[1770992950762,30.78529094,80.599,80.53,9.50073176]
[1770992950969,19.61049094,80.598,80.556,11.1806]
[1770992952768,19.59159683,80.596,80.556,11.1806]
[1770992952970,19.59159683,80.596,80.547,11.1818]
[1770992953674,11.1774,80.58,80.53,9.50073176]
[1770992953872,19.59159683,80.596,80.506,187.92]
[1770992954073,19.59159683,80.596,80.53,9.50073176]
[1770992955464,19.74169616,80.609,80.55,9.50073176]
[1770992955670,19.74169616,80.609,80.53,9.50073176]
[1770992955965,19.74169616,80.607,80.557,11.1805]
[1770992956371,19.74169616,80.607,80.53,9.50073176]
[1770992957167,11.1738,80.606,80.56,11.18]
[1770992957372,19.63278541,80.605,80.56,11.18]
[1770992957970,19.63278541,80.605,80.565,11.1793]
[1770992958372,19.63379854,80.603,80.53,9.50073176]
[1770992959474,19.62110669,80.614,80.55,9.50073176]
[1770992959678,19.62110669,80.627,80.55,9.50073176]
[1770992959873,19.62110669,80.625,80.587,11.1764]
[1770992960180,19.62110669,80.625,80.551,22.3626]
[1770992960874,19.62074916,80.623,80.573,11.1783]
[1770992961184,19.62074916,80.605,80.556,11.1806]
[1770992961484,19.62074916,80.605,80.53,31.86923176]
[1770992962785,19.6546034,80.601,80.559,11.1801]
[1770992963178,19.6546034,80.601,80.53,31.86923176]
[1770992963179,19.6546034,80.601,80.53,9.50073176]
[1770992964585,19.6546034,80.601,80.566,11.1792]
[1770992967287,19.6546034,80.601,80.53,46.89073176]
[1770992967488,19.57590958,80.63,80.55,9.50073176]
[1770992968291,19.57590958,80.62,80.54,9.50073176]
[1770992968789,19.60075425,80.607,80.564,11.1796]
[1770992969389,19.60075425,80.607,80.54,9.50073176]
[1770992969390,19.60075425,80.607,80.57,11.1786]
[1770992970993,19.59908103,80.605,80.563,11.1797]
[1770992971194,19.59908103,80.605,80.54,9.50073176]
[1770992971794,19.60050683,80.604,80.565,11.1783]
[1770992972495,19.60050683,80.604,80.571,11.1774]
[1770992973698,19.60050683,80.604,80.564,11.1783]
[1770992973898,19.60050683,80.604,80.53,9.50073176]
[1770992974098,19.60050683,80.604,80.566,11.1781]
[1770992974399,19.60050683,80.604,80.53,9.50073176]
[1770992974793,19.60050683,80.604,80.535,22.3648]
[1770992974989,19.60050683,80.604,80.54,9.50696711]
[1770992975691,19.60050683,80.604,80.57,11.1775]
[1770992979296,19.60050683,80.604,80.563,11.1785]
[1770992979902,19.60050683,80.604,80.54,9.50696711]
[1770992980398,19.60050683,80.604,80.565,11.1782]
[1770992980797,19.60050683,80.604,80.499,273.1054]
[1770992980798,19.58705337,80.596,80.52,46.89696711]
[1770992981100,19.58705337,80.596,80.563,11.1785]
[1770992981902,19.58754179,80.593,80.52,9.50696711]
[1770992982198,19.58754179,80.593,80.553,11.1799]
[1770992982403,19.58754179,80.593,80.52,9.50696711]
[1770992982404,19.58754179,80.593,80.54,9.50696711]
[1770992983603,19.58754179,80.593,80.56,11.179]
[1770992983803,19.58049333,80.62,80.56,11.179]
[1770992984604,19.57175823,80.601,80.56,11.179]
[1770992985205,19.57175823,80.599,80.56,11.179]
[1770992985598,19.57175823,80.599,80.54,9.50696711]
[1770992986000,19.57220499,80.595,80.54,9.50696711]
[1770992986598,19.57220499,80.595,80.551,11.1802]
[1770992987002,19.57220499,80.595,80.54,9.50696711]
[1770992987511,19.57220499,80.595,80.565,11.1783]
[1770992991220,19.57220499,80.595,80.556,11.1794]
[1770992993023,19.57220499,80.595,80.562,11.1786]
[1770992993424,19.57220499,80.595,80.56,3.54962983]
[1770992993623,19.57220499,80.595,80.55,3.54962983]
[1770992994629,19.56350061,80.588,80.548,11.1807]
[1770992994918,19.56350061,80.588,80.54,3.54962983]
[1770992995117,19.56350061,80.588,80.55,3.54962983]
[1770992996725,19.56350061,80.588,80.552,11.1801]
[1770992997126,19.26888457,80.586,80.552,11.1801]
[1770992999224,19.26888457,80.586,80.559,11.1791]
[1770992999425,19.26888457,80.586,80.55,3.54962983]
[1770992999831,19.26888457,80.586,80.56,3.54962983]
[1770993000127,19.26888457,80.586,80.55,3.54962983]
[1770993000430,19.26888457,80.586,80.499,37.39]
[1770993000728,19.26743481,80.599,80.55,3.54962983]
[1770993000923,19.26743481,80.599,80.56,3.54962983]
[1770993001125,3.54962983,80.62,80.56,3.54962983]
[1770993001323,3.54962983,80.6,80.55,3.54962983]
[1770993001631,3.54962983,80.63,80.585,11.1754]
[1770993001831,3.54962983,80.63,80.58,3.54962983]
[1770993002026,3.54962983,80.63,80.57,3.54962983]
[1770993002231,99.06,80.667,80.493,174.0407]
[1770993002232,3.54962983,80.6,80.55,3.54962983]
[1770993002530,3.54962983,80.62,80.57,3.54962983]
[1770993002730,3.54962983,80.63,80.58,3.54962983]
[1770993002928,3.54962983,80.63,80.519,173.9831]
[1770993002929,3.54962983,80.6,80.55,3.54962983]
[1770993003125,173.6775,80.662,80.486,174.0547]
[1770993003126,3.54962983,80.59,80.54,3.54962983]
[1770993003327,9.78175903,80.589,80.53,3.54962983]
[1770993003628,9.78175903,80.589,80.54,3.54962983]
[1770993003827,9.78223171,80.599,80.55,3.54962983]
[1770993004030,3.54962983,80.59,80.54,3.54962983]
[1770993004326,9.78223171,80.599,80.558,11.1792]
[1770993004729,9.86607574,80.597,80.54,3.54962983]
[1770993004934,9.86607574,80.579,80.52,3.54962983]
[1770993005232,9.86607574,80.556,80.507,11.1863]
[1770993005430,9.86607574,80.556,80.51,3.54962983]
[1770993005933,9.86668729,80.549,80.5,3.54962983]
[1770993006129,9.86668729,80.569,80.52,3.54962983]
[1770993006334,3.54962983,80.56,80.51,3.54962983]
[1770993006631,3.54962983,80.55,80.5,3.54962983]
[1770993006831,9.7857027,80.549,80.5,3.54962983]
[1770993007030,9.7857027,80.548,80.49,3.54962983]
[1770993007226,9.7857027,80.562,80.52,3.54962983]
[1770993007430,3.54962983,80.55,80.5,3.54962983]
[1770993007630,9.78615623,80.549,80.49,3.54962983]
[1770993007834,9.78615623,80.539,80.492,11.1883]
[1770993008031,3.54962983,80.55,80.5,3.54962983]
[1770993008227,9.78615623,80.549,80.5,3.54962983]
[1770993008422,3.54962983,80.56,80.51,3.54962983]
[1770993008624,3.54962983,80.58,80.531,5.2387513]
[1770993008830,3.54962983,80.58,80.52,3.54962983]
[1770993009136,3.54962983,80.56,80.51,3.54962983]
[1770993009737,3.54962983,80.57,80.521,11.1844]
[1770993009930,173.725,80.64,80.531,5.27046775]
[1770993010135,3.54962983,80.57,80.53,3.54962983]
[1770993010436,3.54962983,80.57,80.532,11.1829]
[1770993010629,6.7043456,80.569,80.532,11.1829]
[1770993010843,6.7043456,80.579,80.532,4.68572278]
[1770993011026,6.7043456,80.569,80.51,3.54962983]
[1770993011332,6.7043456,80.559,80.511,4.68572278]
[1770993011531,6.7043456,80.559,80.52,3.54962983]
[1770993011935,6.7043456,80.574,80.531,4.71519843]
[1770993012238,173.6669,80.667,80.551,4.71519843]
[1770993012239,6.7043456,80.592,80.551,4.71519843]
[1770993012535,6.7043456,80.589,80.54,3.54962983]
[1770993012733,6.7043456,80.589,80.55,3.54962983]
[1770993012931,6.7043456,80.589,80.552,11.18]
[1770993013133,3.54962983,80.6,80.553,5.06710341]
[1770993013334,6.7043456,80.604,80.553,5.06710341]
[1770993013632,6.7043456,80.624,80.571,5.0965498]
[1770993013840,6.7043456,80.624,80.58,3.54962983]
[1770993014039,6.7043456,80.638,80.59,11.1747]
[1770993014336,6.7043456,80.619,80.57,3.54962983]
[1770993014530,6.7043456,80.649,80.6,3.54962983]
[1770993014730,6.7043456,80.646,80.6,3.54962983]
[1770993015231,6.7043456,80.629,80.576,5.29073246]
[1770993015635,6.7043456,80.629,80.581,11.1761]
[1770993015941,6.7043456,80.635,80.581,5.31983736]
[1770993016331,6.7043456,80.635,80.59,3.54962983]
[1770993016535,11.169,80.633,80.59,3.54962983]
[1770993016840,6.7043456,80.635,80.59,3.54962983]
[1770993017034,6.7043456,80.635,80.6,3.54962983]
[1770993017243,6.7043456,80.644,80.6,3.54962983]
[1770993017535,6.7043456,80.639,80.59,3.54962983]
[1770993017940,6.7043456,80.636,80.59,3.54962983]
[1770993018344,6.7043456,80.649,80.601,5.53812233]
[1770993018638,11.1674,80.644,80.601,5.53812233]
[1770993019040,6.7043456,80.643,80.601,5.53812233]
[1770993019235,6.7043456,80.701,80.611,5.57756795]
[1770993019442,6.7043456,80.701,80.65,3.54962983]
[1770993019741,6.7043456,80.701,80.573,37.39]
[1770993019742,6.7043456,80.689,80.633,11.1688]
[1770993019928,6.7043456,80.689,80.64,3.54962983]
[1770993020330,6.7043456,80.689,80.641,11.1677]
[1770993020529,6.7043456,80.689,80.64,3.54962983]
[1770993020834,6.7043456,80.688,80.631,5.65758438]
[1770993021232,6.7043456,80.719,80.631,5.65758438]
[1770993021439,6.7043456,80.706,80.65,16.82408438]
[1770993021934,6.7043456,80.704,80.65,16.82408438]
[1770993022138,6.7043456,80.704,80.65,5.65758438]
[1770993022338,6.7043456,80.704,80.591,22.3492]
[1770993022339,6.7043456,80.704,80.62,5.68499124]
[1770993022636,6.7043456,80.685,80.62,5.68499124]
[1770993022842,6.7043456,80.685,80.61,9.48676879]
[1770993023041,6.7043456,80.67,80.611,5.60372159]
[1770993023740,6.7043456,80.669,80.616,11.1712]
[1770993024137,6.7043456,80.669,80.611,5.60372159]
[1770993024633,6.7043456,80.669,80.614,16.86070072]
[1770993025035,6.7043456,80.669,80.622,11.1703]
[1770993025340,299.0,80.722,80.623,5.68920072]
[1770993025341,6.7043456,80.689,80.623,5.68920072]
[1770993025749,6.7043456,80.689,80.631,11.169]
[1770993026038,6.7043456,80.668,80.611,5.71523709]
[1770993026239,6.7043456,80.668,80.604,11.1728]
[1770993026447,6.7043456,80.668,80.571,5.71523709]
[1770993026842,6.7043456,80.652,80.59,5.85751177]
[1770993027239,6.7043456,80.649,80.574,5.85751177]
[1770993027444,6.7043456,80.649,80.591,11.1747]
[1770993027645,6.7043456,80.649,80.591,17.05785843]
[1770993027850,6.7043456,80.649,80.592,5.88315843]
[1770993028043,6.7043456,80.649,80.599,5.88315843]
[1770993029144,6.7043456,80.664,80.6,9.48676879]
[1770993029349,6.7043456,80.664,80.584,5.94912283]
[1770993029744,6.7043456,80.628,80.566,5.9742626]
[1770993030255,6.7043456,80.628,80.581,17.1503626]
[1770993030441,6.7043456,80.628,80.582,5.90914405]
[1770993030650,7.63447052,80.654,80.606,11.1726]
[1770993030843,7.63447052,80.654,80.596,5.94354448]
[1770993031147,7.63447052,80.654,80.34,122.17091226]
[1770993031148,7.63447052,80.639,80.561,5.94354448]
[1770993031348,7.63447052,80.622,80.573,11.1771]
[1770993031747,7.63447052,80.622,80.561,5.94354448]
[1770993031952,18.80777052,80.602,80.541,5.96760262]
[1770993032144,7.63447052,80.601,80.541,5.96760262]
[1770993032739,7.63447052,80.601,80.553,11.1798]
[1770993032953,7.63447052,80.601,80.554,6.15957495]
[1770993033351,7.63447052,80.629,80.554,6.15957495]
[1770993033542,7.63447052,80.609,80.554,17.33927495]
[1770993033946,7.63447052,80.609,80.554,6.15957495]
[1770993034159,7.63447052,80.591,80.521,6.18374227]
[1770993034656,7.63447052,80.591,80.469,174.0925]
[1770993034657,7.63447052,80.576,80.516,11.185]
[1770993034842,7.63447052,80.576,80.505,6.22387942]
[1770993035043,7.63447052,80.576,80.525,11.1838]
[1770993035644,7.63447052,80.592,80.534,11.1825]
[1770993035848,7.63447052,80.592,80.534,6.27166929]
[1770993036044,7.63447052,80.614,80.534,6.27166929]
[1770993036355,7.60667407,80.626,80.559,6.27166929]
[1770993036856,7.60667407,80.626,80.568,5.77612964]
[1770993037354,7.60667407,80.644,80.581,5.77612964]
[1770993037550,11.1653,80.66,80.6,16.9714882]
[1770993037755,11.1653,80.66,80.601,5.7980882]
[1770993038155,7.60667407,80.663,80.607,11.1724]
[1770993038352,7.60667407,80.663,80.607,16.9704882]
[1770993038557,7.60667407,80.663,80.608,5.76884693]
[1770993038957,7.60667407,80.663,80.612,11.1717]
[1770993039166,7.60667407,80.697,80.621,5.79150325]
[1770993039459,7.60667407,80.697,80.638,11.1681]
[1770993039652,7.60667407,80.697,80.638,16.95851282]
[1770993039851,7.60667407,80.697,80.62,9.50380065]
[1770993039852,7.60667407,80.734,80.661,5.81279657]
[1770993040047,7.60667407,80.759,80.681,5.81279657]
[1770993040452,7.60667407,80.759,80.661,5.81279657]
[1770993040855,7.60667407,80.734,80.662,11.1648]
[1770993041050,9.50380065,80.72,80.626,5.75933257]
[1770993041254,7.60667407,80.699,80.626,5.75933257]
[1770993041759,7.60667407,80.692,80.626,5.75933257]
[1770993041954,7.60667407,80.711,80.626,5.75933257]
[1770993042154,7.60667407,80.709,80.626,5.75933257]
[1770993043155,7.60667407,80.705,80.639,5.88879583]
[1770993043558,7.60667407,80.702,80.639,5.88879583]
[1770993044359,7.60667407,80.724,80.653,5.90909722]
[1770993045458,7.60667407,80.743,80.669,5.79205948]
[1770993045656,7.60667407,80.743,80.671,5.79205948]
[1770993046261,7.60667407,80.741,80.674,5.81282149]
[1770993046457,7.60667407,80.769,80.674,5.81282149]
[1770993047157,7.60667407,80.769,80.681,5.82451903]
[1770993047358,7.60667407,80.764,80.689,5.82451903]
[1770993047859,7.60667407,80.795,80.702,5.84361641]
[1770993048062,7.60667407,80.795,80.72,15.34741706]
[1770993048250,9.50380065,80.81,80.72,5.84361641]
[1770993048251,7.60667407,80.78,80.72,5.84361641]
[1770993048561,7.60667407,80.78,80.71,9.50380065]
[1770993048562,7.60667407,80.798,80.731,5.98819885]
[1770993048955,7.60667407,80.796,80.731,5.98819885]
[1770993049256,37.39,80.849,80.71,9.50380065]
[1770993049257,7.60667407,80.814,80.741,6.0082183]
[1770993049457,7.60667407,80.844,80.787,11.1476]
[1770993049654,7.407e-05,80.844,80.762,6.02707336]
[1770993050065,9.50380065,80.87,80.771,7.3105069]
[1770993050664,9.50380065,80.85,80.752,7.3105069]
[1770993051059,9.50380065,80.81,80.733,7.3105069]
[1770993051656,11.1461,80.799,80.733,7.3105069]
[1770993051861,7.60667407,80.8,80.72,9.50380065]
[1770993052163,11.1511,80.762,80.7,9.50380065]
[1770993052566,7.60667407,80.768,80.7,16.81430755]
[1770993052861,11.1504,80.767,80.702,11.1592]
[1770993053161,7.60667407,80.766,80.7,7.3105069]
[1770993053366,7.60667407,80.765,80.699,11.1597]
[1770993053858,7.60667407,80.752,80.681,7.3105069]
[1770993054761,7.60667407,80.737,80.661,7.3105069]
[1770993055172,11.1562,80.725,80.662,11.1647]
[1770993055370,7.60667407,80.737,80.662,11.1647]
[1770993055567,7.60667407,80.737,80.663,7.3105069]
[1770993055974,7.60667407,80.756,80.684,11.1617]
[1770993056162,7.60667407,80.756,80.685,7.3105069]
[1770993056363,7.60667407,80.756,80.665,7.3105069]
[1770993056660,7.60667407,80.731,80.665,7.3105069]
[1770993056863,7.60667407,80.731,80.644,7.3105069]
[1770993057364,7.60667407,80.753,80.661,7.3105069]
[1770993057569,7.60667407,80.753,80.681,7.3105069]
[1770993058269,7.60667407,80.753,80.693,11.1605]
[1770993058764,11.1525,80.752,80.693,11.1605]
[1770993059066,7.60667407,80.752,80.681,7.3105069]
[1770993059673,11.155,80.734,80.681,7.3105069]
[1770993059866,7.60667407,80.752,80.681,7.3105069]
[1770993060172,11.1548,80.735,80.673,18.4737069]
[1770993060367,7.60667407,80.734,80.678,7.3105069]
[1770993060673,7.62712881,80.773,80.701,7.3105069]
[1770993060863,7.62712881,80.759,80.681,7.75140145]
[1770993061065,7.62712881,80.739,80.67,11.1636]
[1770993061460,7.62712881,80.759,80.689,7.75140145]
[1770993061670,7.62712881,80.759,80.701,7.75140145]
[1770993061870,11.15,80.77,80.714,11.1576]
[1770993062068,7.62712881,80.798,80.741,7.75140145]
[1770993062471,7.62712881,80.769,80.681,7.75140145]
[1770993062975,7.62712881,80.755,80.681,7.75140145]
[1770993063673,18.77942881,80.754,80.686,11.1615]
[1770993063871,7.62712881,80.753,80.681,7.75140145]
[1770993064072,7.62712881,80.749,80.661,7.75140145]
[1770993064272,7.62712881,80.728,80.662,11.1648]
[1770993064775,7.62712881,80.728,80.661,18.91640145]
[1770993064974,7.62712881,80.728,80.662,7.75140145]
[1770993065364,7.62712881,80.742,80.662,7.75140145]
[1770993066278,7.62712881,80.729,80.642,7.75140145]
[1770993066776,7.62712881,80.715,80.65,11.1664]
[1770993066978,7.62712881,80.715,80.65,7.75140145]
[1770993067178,7.62712881,80.735,80.65,7.75140145]
[1770993067675,7.62712881,80.719,80.65,7.75140145]
[1770993067866,11.159,80.705,80.651,11.1663]
[1770993068068,7.62712881,80.719,80.651,11.1663]
[1770993068273,7.62712881,80.719,80.65,7.75140145]
[1770993068470,7.62712881,80.767,80.681,7.75140145]
[1770993069075,7.62712881,80.755,80.681,7.75140145]
[1770993069472,7.62712881,80.755,80.718,11.1571]
[1770993069673,7.62712881,80.77,80.7,7.75140145]
[1770993069877,7.62712881,80.77,80.681,7.75140145]
[1770993070077,7.62712881,80.759,80.706,11.1588]
[1770993070278,7.62712881,80.759,80.7,7.75140145]
[1770993070579,173.272,80.851,80.7,7.75140145]
[1770993070580,7.62712881,80.799,80.701,7.75140145]
[1770993071389,7.62712881,80.799,80.721,7.75140145]
[1770993072183,7.62712881,80.788,80.721,7.75140145]
[1770993072884,7.62712881,80.788,80.7,9.50380065]
[1770993072885,11.1502,80.769,80.711,11.158]
[1770993073086,7.62712881,80.768,80.68,9.50380065]
[1770993073288,7.62712881,80.768,80.681,7.75140145]
[1770993073487,11.1544,80.738,80.683,11.1619]
[1770993073682,7.62712881,80.742,80.661,7.75140145]
[1770993073888,7.62712881,80.729,80.661,7.75140145]
[1770993074087,7.62712881,80.718,80.644,7.75140145]
[1770993074391,9.50380065,80.75,80.61,376.6882]
[1770993074392,7.62712881,80.709,80.624,7.75140145]
[1770993074596,7.62712881,80.709,80.641,7.75140145]
[1770993074793,7.62712881,80.709,80.621,7.75140145]
[1770993075299,7.62712881,80.68,80.6,9.50380065]
[1770993075799,7.62712881,80.649,80.58,11.1761]
[1770993076193,11.1674,80.644,80.569,7.75140145]
[1770993076389,7.62712881,80.663,80.581,7.75140145]
[1770993076693,18.79192881,80.663,80.581,7.75140145]
[1770993076995,7.62712881,80.659,80.581,7.75140145]
[1770993077396,7.62712881,80.642,80.561,7.75140145]
[1770993077599,7.62712881,80.639,80.561,7.75140145]
[1770993078093,7.62712881,80.639,80.563,7.75140145]
[1770993078294,7.62712881,80.659,80.563,7.75140145]
[1770993078994,11.1669,80.648,80.587,11.1752]
[1770993079198,11.1669,80.648,80.583,7.75140145]
[1770993079401,7.62712881,80.647,80.563,7.75140145]
[1770993079700,7.62712881,80.632,80.563,7.75140145]
[1770993080296,7.62712881,80.659,80.563,7.75140145]
[1770993080489,7.62712881,80.659,80.597,11.1738]
[1770993080804,7.62712881,80.681,80.598,7.75140145]
[1770993080989,7.62712881,80.681,80.625,11.1699]
[1770993081190,7.62712881,80.701,80.626,7.75140145]
[1770993081396,7.62712881,80.739,80.626,7.75140145]
[1770993081596,11.1569,80.72,80.626,7.75140145]
[1770993081792,7.62712881,80.739,80.646,7.75140145]
[1770993082502,7.62712881,80.733,80.631,7.75140145]
[1770993082795,11.1593,80.703,80.643,11.1674]
[1770993083000,7.62712881,80.733,80.644,7.75140145]
[1770993084106,18.78402881,80.72,80.644,7.75140145]
[1770993084303,11.1569,80.72,80.644,7.75140145]
[1770993084600,7.62712881,80.743,80.651,7.75140145]
[1770993085193,7.62712881,80.767,80.651,7.75140145]
[1770993085503,11.1518,80.757,80.684,11.1618]
[1770993085700,7.62712881,80.767,80.67,36.36868422]
[1770993085999,7.62712881,80.799,80.711,7.75140145]
[1770993086303,7.62712881,80.799,80.689,7.75140145]
[1770993086797,7.62712881,80.768,80.689,7.75140145]
[1770993087198,7.62712881,80.768,80.617,7.75140145]
[1770993087398,7.62712881,80.768,80.651,7.75140145]
[1770993087797,7.62712881,80.734,80.671,7.75140145]
[1770993087998,7.62712881,80.734,80.647,7.75140145]
[1770993088399,7.62712881,80.69,80.611,7.75140145]
[1770993089500,11.1633,80.674,80.613,11.1716]
[1770993089702,7.62712881,80.69,80.613,7.75140145]
[1770993090096,36.36868422,80.7,80.613,7.75140145]
[1770993090097,7.62712881,80.683,80.615,11.1714]
[1770993090303,7.62712881,80.679,80.581,7.75140145]
[1770993090704,11.1658,80.656,80.594,11.1742]
[1770993090892,7.74439851,80.659,80.581,7.75140145]
[1770993091597,11.1699,80.626,80.56,7.94776276]
[1770993091803,7.74439851,80.637,80.56,7.94776276]
[1770993092001,7.74439851,80.637,80.54,7.94776276]
[1770993092201,7.74439851,80.637,80.542,11.1814]
[1770993092505,7.74439851,80.637,80.54,7.94776276]
[1770993092697,7.74439851,80.609,80.54,7.94776276]
[1770993093100,11.1766,80.578,80.517,7.94776276]
[1770993093303,36.36868422,80.61,80.517,7.94776276]
[1770993093614,7.74439851,80.606,80.517,7.94776276]
[1770993093917,7.74439851,80.589,80.517,7.94776276]
[1770993094103,7.74439851,80.589,80.505,11.1865]
[1770993094304,7.74439851,80.589,80.506,7.94776276]
[1770993094502,11.1737,80.599,80.523,7.94776276]
[1770993094702,7.74439851,80.611,80.523,7.94776276]
[1770993095002,7.74439851,80.611,80.533,7.94776276]
[1770993095711,7.74439851,80.607,80.533,7.94776276]
[1770993096210,7.74439851,80.607,80.529,7.99293983]
[1770993096811,11.1729,80.605,80.529,7.99293983]
[1770993097011,7.74439851,80.607,80.529,7.99293983]
[1770993097603,7.83696789,80.627,80.531,7.99293983]
[1770993098302,7.83696789,80.625,80.531,7.99293983]
[1770993098500,7.83696789,80.599,80.518,7.99293983]
[1770993098907,117.52,80.624,80.518,7.99293983]
[1770993098908,19.01086789,80.597,80.523,11.184]
[1770993099101,173.6608,80.67,80.531,7.99293983]
[1770993099406,7.83696789,80.639,80.551,7.99293983]
[1770993099601,11.1693,80.63,80.557,7.99293983]
[1770993099806,7.83696789,80.639,80.557,7.99293983]
[1770993100004,7.83696789,80.665,80.597,19.16683983]
[1770993100209,7.83696789,80.665,80.598,7.99293983]
[1770993100503,11.1677,80.642,80.577,7.99293983]
[1770993101012,19.00466789,80.642,80.577,7.99293983]
[1770993101413,11.1677,80.642,80.577,7.99293983]
[1770993101615,11.1659,80.655,80.577,7.99293983]
[1770993101913,7.83696789,80.655,80.591,7.99293983]
[1770993102402,7.83696789,80.655,80.595,11.174]
[1770993103011,11.1661,80.654,80.591,7.99293983]
[1770993103608,19.00456789,80.643,80.57,7.99293983]
[1770993104010,19.00456789,80.643,80.573,7.99293983]
[1770993104613,11.166,80.654,80.573,7.99293983]
[1770993104913,7.83696789,80.663,80.598,7.99293983]
[1770993105109,11.163,80.676,80.598,7.99293983]
[1770993105302,7.83696789,80.683,80.598,7.99293983]
[1770993105507,7.83696789,80.705,80.628,7.99293983]
[1770993106211,24.23420194,80.7,80.609,7.99293983]
[1770993106405,7.83696789,80.674,80.571,7.99293983]
[1770993106913,11.1628,80.678,80.608,7.99293983]
[1770993107504,11.1613,80.689,80.608,7.99293983]
[1770993107705,7.83696789,80.688,80.608,7.99293983]
[1770993108110,7.83696789,80.688,80.531,695.8318]
[1770993108111,7.83696789,80.708,80.612,7.99293983]
[1770993108416,7.83696789,80.729,80.631,7.99293983]
[1770993108614,7.83696789,80.729,80.655,7.99293983]
[1770993109005,11.1529,80.749,80.65,24.23420194]
[1770993109206,7.83696789,80.787,80.684,7.99293983]
[1770993109413,7.83696789,80.779,80.684,7.99293983]
[1770993109708,7.83696789,80.779,80.699,7.99293983]
[1770993110215,7.83696789,80.774,80.701,11.1595]
[1770993110510,7.83696789,80.774,80.699,7.99293983]
[1770993110716,7.83696789,80.794,80.699,7.99293983]
[1770993110909,11.1469,80.793,80.699,7.99293983]
[1770993111116,11.1469,80.793,80.723,19.14923983]
[1770993111318,7.83696789,80.792,80.723,19.14923983]
[1770993111510,7.83696789,80.79,80.723,19.14923983]
[1770993111813,7.83696789,80.819,80.734,7.99293983]
[1770993112011,7.83696789,80.831,80.734,7.99293983]
[1770993112211,7.83696789,80.831,80.772,11.1496]
[1770993112607,7.83696789,80.831,80.731,7.99293983]
[1770993112803,7.83696789,80.828,80.731,7.99293983]
[1770993113012,7.83696789,80.828,80.752,11.1524]
[1770993113412,24.23420194,80.85,80.758,7.99293983]
[1770993113619,7.83696789,80.849,80.758,7.99293983]
[1770993114115,24.23420194,80.87,80.758,7.99293983]
[1770993114116,7.83696789,80.835,80.758,7.99293983]
[1770993114516,119.3,80.851,80.758,7.99293983]
[1770993114716,119.3,80.851,80.777,7.99293983]
[1770993114916,7.83696789,80.856,80.777,7.99293983]
[1770993115310,7.83696789,80.855,80.777,7.99293983]
[1770993115510,7.83696789,80.855,80.732,173.5249]
[1770993115511,7.83696789,80.849,80.757,7.99293983]
[1770993115713,11.1409,80.836,80.76,7.99293983]
[1770993115914,7.83696789,80.849,80.771,7.99293983]
[1770993116214,7.83696789,80.849,80.799,11.1458]
[1770993116409,9.874e-05,80.879,80.77,24.23420194]
[1770993116410,7.83696789,80.871,80.8,7.99293983]
[1770993116811,7.83696789,80.871,80.776,7.99293983]
[1770993117011,7.83696789,80.869,80.776,7.99293983]
[1770993117216,7.83696789,80.869,80.71,195.8892]
[1770993117217,7.83696789,80.849,80.751,7.99293983]
[1770993117510,7.83696789,80.822,80.751,7.99293983]
[1770993117908,7.83696789,80.849,80.751,7.99293983]
[1770993118111,7.83696789,80.849,80.767,7.99293983]
[1770993118715,7.83696789,80.849,80.777,7.99293983]
[1770993119215,7.83696789,80.849,80.783,7.99293983]
[1770993119414,7.83696789,80.874,80.783,7.99293983]
[1770993119615,18.97426789,80.862,80.786,7.99293983]
[1770993119818,7.83696789,80.861,80.786,7.99293983]
[1770993120210,11.1376,80.86,80.788,19.14033983]
[1770993120412,7.83696789,80.849,80.73,24.23420194]
[1770993120615,11.1406,80.838,80.762,19.25021736]
[1770993120828,8.34765061,80.837,80.762,19.25021736]
[1770993121119,11.137,80.864,80.788,8.09931736]
[1770993121319,8.34765061,80.863,80.751,8.09931736]
[1770993121620,8.34765061,80.859,80.751,8.09931736]
[1770993122019,24.23420194,80.86,80.731,8.09931736]
[1770993122020,8.34765061,80.857,80.731,8.09931736]
[1770993122323,8.34765061,80.831,80.754,8.09931736]
[1770993122720,8.34765061,80.831,80.791,11.147]
[1770993123016,119.68,80.887,80.782,8.09931736]
[1770993123417,24.23420194,80.88,80.782,8.09931736]
[1770993124014,24.23420194,80.9,80.782,8.09931736]
[1770993124419,11.1359,80.872,80.813,8.09931736]
[1770993124717,24.23420194,80.88,80.79,8.09931736]
[1770993124925,24.23420194,80.86,80.77,8.09931736]
[1770993125225,24.23420194,80.86,80.689,173.6175]
[1770993125226,4.16198458,80.839,80.721,8.09931736]
[1770993125522,11.1457,80.801,80.73,19.25471736]
[1770993125729,173.2692,80.852,80.689,205.08]
[1770993125730,4.18708259,80.809,80.693,8.09931736]
[1770993126226,4.18708259,80.782,80.693,8.09931736]
[1770993126624,11.1523,80.753,80.693,8.09931736]
[1770993126815,3.92399102,80.762,80.693,8.09931736]